fUSD/lending_fUSD_20250226
["ID","MTS","AMOUNT","RATE_DAILY","PERIOD"]
[354568917,1740577859431,-557.37,0.00039177,14]
[354568918,1740577859441,-1296.84,0.00039177,14]
[354568919,1740577859451,-500.0,0.00039177,14]
[354568920,1740577859461,-1002.69,0.00039177,14]
[354568921,1740577859470,-2093.77,0.00039177,14]
[354568922,1740577859479,-513.61,0.00039177,14]
[354568923,1740577859488,-500.0,0.00039177,14]
[354568924,1740577859498,-882.04,0.00039177,14]
[354568925,1740577859507,-709.78,0.00039177,14]
[354568926,1740577859517,-500.0,0.00039177,14]
[354568927,1740577859526,-1026.63,0.00039177,14]
[354568928,1740577859536,-564.68813205,0.00039177,14]
[354568929,1740577859546,-1813.28,0.00039177,14]
[354568930,1740577859556,-500.0,0.00039177,14]
[354568931,1740577859565,-793.37,0.00039177,14]
[354568932,1740577859574,-500.0,0.00039177,14]
[354568933,1740577859584,-2647.49,0.00039177,14]
[354568934,1740577859593,-500.0,0.00039177,14]
[354568935,1740577859603,-1561.93,0.00039177,14]
[354568936,1740577859612,-1324.4,0.00039177,14]
[354568937,1740577859623,-281.9847693,0.00039177,14]
[354568938,1740577859632,-500.0,0.00039177,14]
[354568939,1740577859642,-1361.16,0.00039177,14]
[354568940,1740577859651,-1819.24,0.00039177,14]
[354568941,1740577859660,-500.0,0.00039177,14]
[354568942,1740577859670,-1164.04,0.00039177,14]
[354568943,1740577859679,-1247.26,0.00039177,14]
[354568944,1740577859688,-706.59,0.00039177,14]
[354568945,1740577859698,-872.61,0.00039177,14]
[354568946,1740577859708,-1466.91,0.00039177,14]
[354568947,1740577859717,-2051.37,0.00039177,14]
[354568948,1740577859727,-500.0,0.00039177,14]
[354568949,1740577859736,-1004.19,0.00039177,14]
[354568950,1740577859746,-500.0,0.00039177,14]
[354568951,1740577859755,-1448.97,0.00039177,14]
[354568952,1740577859764,-302.84779841,0.00039177,14]
[354568953,1740577859774,-2295.36,0.00039177,14]
[354568954,1740577859784,-1383.17,0.00039177,14]
[354568955,1740577859797,-790.09,0.00039177,14]
[354568956,1740577859806,-2265.51,0.00039177,14]
[354568957,1740577859816,-1696.99,0.00039177,14]
[354568958,1740577859826,-500.0,0.00039177,14]
[354568959,1740577859837,-632.7,0.00039177,14]
[354568960,1740577859846,-1588.9,0.00039177,14]
[354568961,1740577859855,-970.15,0.00039177,14]
[354568962,1740577859866,-1881.93,0.00039177,14]
[354568963,1740577859876,-1945.87,0.00039177,14]
[354568964,1740577859885,-1200.84,0.00039177,14]
[354568965,1740577859895,-600.0,0.00039177,14]
[354568966,1740577859905,-500.0,0.00039177,14]
[354568967,1740577859914,-500.0,0.00039177,14]
[354568968,1740577859923,-1380.05,0.00039177,14]
[354568969,1740577859932,-1782.98,0.00039177,14]
[354568970,1740577859941,-1222.32,0.00039177,14]
[354568971,1740577859951,-1676.7,0.00039177,14]
[354568972,1740577859960,-500.0,0.00039177,14]
[354568973,1740577859969,-2543.83,0.00039177,14]
[354568974,1740577859978,-500.0,0.00039177,14]
[354568975,1740577859988,-500.0,0.00039177,14]
[354568976,1740577859997,-1391.83,0.00039177,14]
[354568977,1740577860007,-1308.34,0.00039177,14]
[354568978,1740577860016,-1978.98,0.00039177,14]
[354568979,1740577860026,-590.18,0.00039177,14]
[354568980,1740577860035,-1224.14,0.00039177,14]
[354568981,1740577860045,-500.0,0.00039177,14]
[354568982,1740577860054,-1700.34,0.00039177,14]
[354568983,1740577860064,-1065.08,0.00039177,14]
[354568984,1740577860075,-1250.82,0.00039177,14]
[354568985,1740577860084,-4445.12,0.00039177,14]
[354568986,1740577860094,-990.24,0.00039177,14]
[354568987,1740577860104,-2335.36,0.00039177,14]
[354568988,1740577860113,-1603.67,0.00039177,14]
[354568989,1740577860124,-500.0,0.00039177,14]
[354568990,1740577860134,-500.0,0.00039177,14]
[354568991,1740577860143,-2907.33,0.00039177,14]
[354568992,1740577860152,-1249.22,0.00039177,14]
[354568993,1740577860162,-1019.67,0.00039177,14]
[354568994,1740577860171,-500.0,0.00039177,14]
[354568995,1740577860181,-598.56,0.00039177,14]
[354568996,1740577860191,-1840.72,0.00039177,14]
[354568997,1740577860200,-737.47,0.00039177,14]
[354568998,1740577860210,-579.27,0.00039177,14]
[354568999,1740577860220,-2303.31,0.00039177,14]
[354569000,1740577860229,-1284.45,0.00039177,14]
[354569001,1740577860239,-1366.67,0.00039177,14]
[354569002,1740577860249,-500.0,0.00039177,14]
[354569003,1740577860259,-500.0,0.00039177,14]
[354569004,1740577860268,-1658.66,0.00039177,14]
[354569005,1740577860278,-500.0,0.00039177,14]
[354569006,1740577860287,-794.0,0.00039177,14]
[354569007,1740577860296,-153.54,0.00039177,14]
[354569008,1740577860306,-500.0,0.00039177,14]
[354569009,1740577860315,-1593.92,0.00039177,14]
[354569010,1740577860324,-930.67,0.00039177,14]
[354569011,1740577860333,-534.26487117,0.00039177,14]
[354569012,1740577860343,-500.0,0.00039177,14]
[354569013,1740577860352,-1206.45,0.00039177,14]
[354569014,1740577860362,-500.0,0.00039177,14]
[354569015,1740577860373,-914.28,0.00039177,14]
[354569016,1740577860382,-2032.83,0.00039177,14]
[354569017,1740577860392,-3215.52,0.00039177,14]
[354569018,1740577860402,-1509.21,0.00039177,14]
[354569019,1740577860411,-556.78,0.00039177,14]
[354569020,1740577860421,-651.66,0.00039177,14]
[354569021,1740577860431,-2070.14,0.00039177,14]
[354569022,1740577860440,-500.0,0.00039177,14]
[354569023,1740577860450,-2067.47,0.00039177,14]
[354569024,1740577860459,-601.01,0.00039177,14]
[354569025,1740577860469,-500.0,0.00039177,14]
[354569026,1740577860479,-931.17,0.00039177,14]
[354569027,1740577860488,-796.36,0.00039177,14]
[354569028,1740577860498,-500.0,0.00039177,14]
[354569029,1740577860507,-878.94,0.00039177,14]
[354569030,1740577860517,-2317.26,0.00039177,14]
[354569031,1740577860526,-811.32,0.00039177,14]
[354569032,1740577860535,-718.91,0.00039177,14]
[354569033,1740577860545,-1354.8,0.00039177,14]
[354569034,1740577860555,-986.02,0.00039177,14]
[354569035,1740577860564,-500.0,0.00039177,14]
[354569036,1740577860573,-4031.87,0.00039177,14]
[354569037,1740577860583,-500.0,0.00039177,14]
[354569038,1740577860592,-568.27,0.00039177,14]
[354569039,1740577860602,-1193.27,0.00039177,14]
[354569040,1740577860611,-500.0,0.00039177,14]
[354569041,1740577860622,-1813.53,0.00039177,14]
[354569042,1740577860631,-621.69,0.00039177,14]
[354569043,1740577860641,-1015.25,0.00039177,14]
[354569044,1740577860650,-500.0,0.00039177,14]
[354569045,1740577860659,-500.0,0.00039177,14]
[354569046,1740577860669,-1455.37,0.00039177,14]
[354569047,1740577860678,-1166.6,0.00039177,14]
[354569048,1740577860688,-500.0,0.00039177,14]
[354569049,1740577860697,-795.61,0.00039177,14]
[354569050,1740577860706,-722.35,0.00039177,14]
[354569051,1740577860715,-867.92,0.00039177,14]
[354569052,1740577860725,-1830.54,0.00039177,14]
[354569053,1740577860735,-1354.78,0.00039177,14]
[354569054,1740577860744,-725.92,0.00039177,14]
[354569055,1740577860754,-571.25,0.00039177,14]
[354569056,1740577860763,-1378.95,0.00039177,14]
[354569057,1740577860775,-696.87,0.00039177,14]
[354569058,1740577860786,-801.49,0.00039177,14]
[354569059,1740577860796,-500.0,0.00039177,14]
[354569060,1740577860806,-563.38,0.00039177,14]
[354569061,1740577860815,-755.14,0.00039177,14]
[354569062,1740577860825,-772.08,0.00039177,14]
[354569063,1740577860834,-1769.21,0.00039177,14]
[354569064,1740577860844,-500.0,0.00039177,14]
[354569065,1740577860854,-2728.47,0.00039177,14]
[354569066,1740577860864,-1622.84,0.00039177,14]
[354569067,1740577860875,-820.99,0.00039177,14]
[354569068,1740577860884,-1253.65,0.00039177,14]
[354569069,1740577860893,-500.0,0.00039177,14]
[354569070,1740577860902,-1658.28,0.00039177,14]
[354569071,1740577860912,-1544.72,0.00039177,14]
[354569072,1740577860921,-1470.92,0.00039177,14]
[354569073,1740577860930,-500.0,0.00039177,14]
[354569074,1740577860939,-3396.57,0.00039177,14]
[354569075,1740577860949,-1682.13,0.00039177,14]
[354569076,1740577860958,-1634.21,0.00039177,14]
[354569077,1740577860968,-3334.29,0.00039177,14]
[354569078,1740577860977,-500.0,0.00039177,14]
[354569079,1740577860986,-1844.17,0.00039177,14]
[354569080,1740577860995,-2369.0,0.00039177,14]
[354569081,1740577861005,-500.0,0.00039177,14]
[354569082,1740577861014,-500.0,0.00039177,14]
[354569083,1740577861023,-4171.01,0.00039177,14]
[354569084,1740577861033,-505.24802267,0.00039177,14]
[354569085,1740577861043,-500.0,0.00039177,14]
[354569086,1740577861052,-500.0,0.00039177,14]
[354569087,1740577861061,-500.0,0.00039177,14]
[354569088,1740577861071,-500.0,0.00039177,7]
[354569089,1740577861080,-13873.2,0.00039177,14]
[354569090,1740577861090,-603.09,0.00039177,14]
[354569091,1740577861099,-549.33900841,0.00039177,14]
[354569092,1740577861109,-500.0,0.00039177,14]
[354569093,1740577861120,-500.0,0.00039177,14]
[354569094,1740577861129,-1000.08,0.00039177,14]
[354569095,1740577861138,-1178.11,0.00039177,14]
[354569096,1740577861147,-500.0,0.00039177,14]
[354569097,1740577861156,-500.0,0.00039177,14]
[354569098,1740577861165,-3163.92,0.00039177,14]
[354569099,1740577861175,-581.84,0.00039177,14]
[354569100,1740577861184,-1035.82,0.00039177,14]
[354569101,1740577861194,-500.0,0.00039177,14]
[354569102,1740577861204,-510.02,0.00039177,14]
[354569103,1740577861213,-511.51,0.00039177,14]
[354569104,1740577861227,-500.0,0.00039177,14]
[354569105,1740577861236,-3537.7,0.00039177,14]
[354569106,1740577861246,-500.0,0.00039177,14]
[354569107,1740577861255,-1584.97,0.00039177,14]
[354569108,1740577861264,-500.0,0.00039177,14]
[354569109,1740577861274,-883.71,0.00039177,14]
[354569110,1740577861283,-1742.53,0.00039177,14]
[354569111,1740577861292,-1183.74,0.00039177,14]
[354569112,1740577861302,-500.0,0.00039177,14]
[354569113,1740577861311,-2880.94,0.00039177,14]
[354569114,1740577861321,-2048.33,0.00039177,14]
[354569115,1740577861330,-11387.44,0.00039177,14]
[354569116,1740577861340,-615.59,0.00039177,14]
[354569117,1740577861350,-300.0,0.00039177,14]
[354569118,1740577861359,-916.59,0.00039177,14]
[354569119,1740577861370,-1244.24,0.00039177,14]
[354569120,1740577861379,-559.08,0.00039177,14]
[354569121,1740577861389,-546.42,0.00039177,14]
[354569122,1740577861398,-1746.95,0.00039177,14]
[354569123,1740577861408,-1761.75,0.00039177,14]
[354569124,1740577861417,-500.0,0.00039177,14]
[354569125,1740577861426,-538.92,0.00039177,14]
[354569126,1740577861436,-595.5,0.00039177,14]
[354569127,1740577861446,-1217.13,0.00039177,14]
[354569128,1740577861455,-2652.63,0.00039177,14]
[354569129,1740577861464,-2987.07,0.00039177,14]
[354569130,1740577861474,-577.66,0.00039177,14]
[354569131,1740577861483,-500.0,0.00039177,14]
[354569132,1740577861492,-598.47,0.00039177,14]
[354569133,1740577861502,-3341.12,0.00039177,14]
[354569134,1740577861512,-500.0,0.00039177,14]
[354569135,1740577861521,-500.0,0.00039177,14]
[354569136,1740577861531,-500.0,0.00039177,14]
[354569137,1740577861540,-500.0,0.00039177,14]
[354569138,1740577861550,-500.0,0.00039177,14]
[354569139,1740577861560,-2065.94,0.00039177,14]
[354569140,1740577861569,-797.66,0.00039177,14]
[354569141,1740577861579,-1189.81,0.00039177,14]
[354569142,1740577861588,-566.37,0.00039177,14]
[354569143,1740577861597,-500.0,0.00039177,14]
[354569144,1740577861607,-1046.83,0.00039177,14]
[354569145,1740577861616,-500.0,0.00039177,14]
[354569146,1740577861627,-578.47,0.00039177,14]
[354569147,1740577861636,-500.0,0.00039177,14]
[354569148,1740577861645,-500.0,0.00039178,14]
[354569149,1740577861655,-500.0,0.00039178,14]
[354569150,1740577861665,-500.0,0.00039178,14]
[354569151,1740577861674,-565.01,0.00039178,14]
[354569152,1740577861683,-648.16,0.00039178,14]
[354569153,1740577861693,-831.81,0.00039178,14]
[354569154,1740577861702,-500.0,0.00039178,14]
[354569155,1740577861711,-1013.83,0.00039178,14]
[354569156,1740577861721,-500.0,0.00039178,14]
[354569157,1740577861730,-500.0,0.00039178,14]
[354569158,1740577861739,-950.36,0.00039178,14]
[354569159,1740577861749,-732.41,0.00039178,14]
[354569160,1740577861758,-950.01,0.00039178,14]
[354569161,1740577861767,-500.0,0.00039178,14]
[354569162,1740577861777,-924.52,0.00039178,14]
[354569163,1740577861787,-632.95,0.00039178,14]
[354569164,1740577861800,-500.0,0.00039178,14]
[354569165,1740577861809,-766.77,0.00039178,14]
[354569166,1740577861818,-514.88961895,0.00039178,14]
[354569167,1740577861828,-500.0,0.00039178,14]
[354569168,1740577861837,-500.0,0.00039178,14]
[354569169,1740577861847,-500.0,0.00039178,14]
[354569170,1740577861856,-1251.19,0.00039178,14]
[354569171,1740577861865,-500.0,0.00039178,14]
[354569172,1740577861878,-3553.83,0.00039178,14]
[354569173,1740577861888,-1452.5,0.00039178,14]
[354569174,1740577861898,-3541.32,0.00039178,14]
[354569175,1740577861907,-3686.64,0.00039178,14]
[354569176,1740577861917,-1345.95,0.00039178,14]
[354569177,1740577861926,-510.79,0.00039178,14]
[354569178,1740577861935,-1000.0,0.000392,7]
[354569179,1740577861945,-1000.0,0.00039274,7]
[354569180,1740577861956,-1878.05,0.0003932,14]
[354569181,1740577861965,-165.15,0.00039321,2]
[354569182,1740577861974,-926.59310377,0.00039351,2]
[354569183,1740577861983,-15084.50649834,0.00039351,2]
[354569184,1740577861993,-296.14295252,0.00039351,8]
[354569185,1740577862002,-4656.35266776,0.00039351,2]
[354569186,1740577862012,-500.0,0.00039363,5]
[354569187,1740577862021,-2110.0,0.00039417,2]
[354569188,1740577862030,-500.0,0.00039449,14]
[354569189,1740577862040,-500.0,0.00039449,14]
[354569190,1740577862049,-500.0,0.00039449,14]
[354569191,1740577862058,-760.91,0.00039449,14]
[354569192,1740577862067,-958.67,0.00039449,14]
[354569193,1740577862077,-500.0,0.00039449,14]
[354569194,1740577862086,-500.0,0.00039449,14]
[354569195,1740577862096,-928.51,0.00039449,14]
[354569196,1740577862105,-500.0,0.00039449,14]
[354569197,1740577862115,-664.15,0.00039449,14]
[354569198,1740577862125,-500.0,0.00039449,14]
[354569199,1740577862134,-500.0,0.00039449,14]
[354569200,1740577862144,-500.0,0.00039449,14]
[354569201,1740577862154,-500.0,0.00039449,14]
[354569202,1740577862163,-500.0,0.00039449,14]
[354569203,1740577862174,-685.06,0.00039449,14]
[354569204,1740577862183,-1165.71,0.00039449,14]
[354569205,1740577862193,-500.0,0.00039449,14]
[354569206,1740577862203,-860.05,0.00039449,14]
[354569207,1740577862212,-500.0,0.00039449,14]
[354569208,1740577862222,-1547.06,0.00039449,14]
[354569209,1740577862232,-554.12,0.00039449,14]
[354569210,1740577862242,-500.0,0.00039449,14]
[354569211,1740577862252,-500.0,0.00039449,14]
[354569212,1740577862262,-500.0,0.00039449,14]
[354569213,1740577862272,-570.0,0.00039449,14]
[354569214,1740577862282,-1158.16,0.00039449,14]
[354569215,1740577862292,-626.17,0.00039449,14]
[354569216,1740577862302,-952.68,0.00039449,14]
[354569217,1740577862312,-508.1,0.00039449,14]
[354569218,1740577862321,-968.8,0.00039449,14]
[354569219,1740577862331,-2419.29,0.00039449,14]
[354569220,1740577862341,-500.0,0.00039449,14]
[354569221,1740577862351,-1719.14,0.00039449,14]
[354569222,1740577862360,-500.0,0.00039449,14]
[354569223,1740577862372,-682.591872,0.00039449,14]
[354569224,1740577862381,-500.0,0.00039449,14]
[354569225,1740577862391,-500.0,0.00039449,14]
[354569226,1740577862401,-500.0,0.00039449,14]
[354569227,1740577862411,-500.0,0.00039449,14]
[354569228,1740577862420,-1795.0,0.00039449,14]
[354569229,1740577862430,-500.0,0.00039449,14]
[354569230,1740577862440,-1645.33012,0.00039449,14]
[354569231,1740577862449,-714.11,0.00039449,14]
[354569232,1740577862459,-1111.56,0.00039449,14]
[354569233,1740577862468,-500.0,0.00039449,14]
[354569234,1740577862478,-500.0,0.00039449,14]
[354569235,1740577862487,-667.63,0.00039449,14]
[354569236,1740577862497,-500.0,0.00039449,14]
[354569237,1740577862506,-2722.32,0.00039449,14]
[354569238,1740577862515,-7145.37,0.00039449,14]
[354569239,1740577862525,-1927.34,0.00039449,14]
[354569240,1740577862535,-505.88723468,0.00039449,14]
[354569241,1740577862544,-1008.2,0.00039449,14]
[354569242,1740577862554,-650.25,0.00039449,14]
[354569243,1740577862564,-2009.61,0.00039449,14]
[354569244,1740577862574,-1874.67951625,0.00039449,14]
[354569245,1740577862596,-139.98048375,0.00039449,14]
[354569246,1740577862606,-3098.29,0.00039449,14]
[354569247,1740577862616,-732.93,0.00039449,14]
[354569248,1740577862628,-500.0,0.00039449,14]
[354569249,1740577862638,-938.98,0.00039449,14]
[354569250,1740577862648,-1479.36,0.00039449,14]
[354569251,1740577862658,-3568.1,0.00039449,14]
[354569252,1740577862668,-669.26,0.00039449,14]
[354569253,1740577862678,-3257.25,0.00039449,14]
[354569254,1740577862688,-645.47,0.00039449,14]
[354569255,1740577862698,-3076.86,0.00039449,14]
[354569256,1740577862708,-815.6433079,0.00039449,14]
[354569257,1740577863092,-262.6,0.00038627,14]
[354569258,1740577863111,-1809.19,0.00038627,14]
[354569259,1740577863122,-4626.64,0.00038627,14]
[354569260,1740577863133,-500.0,0.00038627,14]
[354569261,1740577863143,-500.0,0.00038627,14]
[354569262,1740577863154,-2071.79,0.00038901,14]
[354569263,1740577863165,-4626.64,0.00038901,14]
[354569264,1740577863175,-474.92,0.00038901,14]
[354569265,1740577863186,-2071.79,0.00039175,14]
[354569266,1740577863196,-4626.64,0.00039175,14]
[354569267,1740577863207,-437.5966921,0.00039449,14]
[354569268,1740577863218,-2384.03,0.00039449,14]
[354569269,1740577863228,-500.0,0.00039449,14]
[354569270,1740577863239,-500.0,0.00039449,14]
[354569271,1740577863249,-1151.84,0.00039449,14]
[354569272,1740577863259,-1460.66,0.00039449,14]
[354569273,1740577863270,-6184.91,0.00039449,14]
[354569274,1740577863280,-500.0,0.00039449,14]
[354569275,1740577863289,-771.66,0.00039449,14]
[354569276,1740577863299,-2808.99,0.00039449,14]
[354569277,1740577863309,-827.66,0.00039449,14]
[354569278,1740577863319,-3678.19,0.00039449,14]
[354569279,1740577863329,-500.0,0.00039449,14]
[354569280,1740577863339,-1437.84,0.00039449,14]
[354569281,1740577863349,-5109.15,0.00039449,14]
[354569282,1740577863359,-1209.32,0.00039449,14]
[354569283,1740577863370,-500.0,0.00039449,14]
[354569284,1740577863380,-500.0,0.00039449,14]
[354569285,1740577863391,-2632.15,0.00039449,14]
[354569286,1740577863400,-500.0,0.00039449,14]
[354569287,1740577863410,-10651.32,0.00039449,14]
[354569288,1740577863420,-839.0,0.00039449,14]
[354569289,1740577863430,-500.0,0.00039449,14]
[354569290,1740577863441,-846.37,0.00039449,14]
[354569291,1740577863451,-700.95,0.00039449,14]
[354569292,1740577863462,-908.08,0.00039449,14]
[354569293,1740577863472,-3314.37,0.00039449,14]
[354569294,1740577863483,-500.0,0.00039449,14]
[354569295,1740577863493,-810.55,0.00039449,14]
[354569296,1740577863503,-684.23,0.00039449,14]
[354569297,1740577863512,-758.03,0.00039449,14]
[354569298,1740577863522,-1616.56,0.00039449,14]
[354569299,1740577863532,-1561.92,0.00039449,14]
[354569300,1740577863542,-412.4,0.00039449,14]
[354569301,1740577863552,-1729.62,0.00039449,14]
[354569302,1740577863562,-4702.59,0.00039449,14]
[354569303,1740577863572,-548.15,0.00039449,14]
[354569304,1740577863582,-718.01,0.00039449,14]
[354569305,1740577863592,-500.0,0.00039449,14]
[354569306,1740577863602,-564.41,0.00039449,14]
[354569307,1740577863612,-500.0,0.00039449,14]
[354569308,1740577863622,-658.16,0.00039449,14]
[354569309,1740577863633,-1453.01,0.00039449,14]
[354569310,1740577863643,-4330.92,0.00039449,14]
[354569311,1740577863653,-1268.8,0.00039449,14]
[354569312,1740577863663,-1276.19,0.00039449,14]
[354569313,1740577863673,-2279.27,0.00039449,14]
[354569314,1740577863682,-1730.63,0.00039449,14]
[354569315,1740577863692,-500.0,0.00039449,14]
[354569316,1740577863702,-500.0,0.00039449,14]
[354569317,1740577863712,-715.74,0.00039449,14]
[354569318,1740577863722,-500.0,0.00039449,14]
[354569319,1740577863732,-3971.48,0.00039449,14]
[354569320,1740577863742,-500.0,0.00039449,14]
[354569321,1740577863753,-1278.34,0.00039449,14]
[354569322,1740577863763,-500.0,0.00039449,14]
[354569323,1740577863773,-500.0,0.00039449,14]
[354569324,1740577863784,-2071.79,0.00039449,14]
[354569325,1740577863796,-4626.64,0.00039449,14]
[354569326,1740577863807,-300.0,0.0003945,10]
[354569327,1740577863818,-300.0,0.0003945,10]
[354569328,1740577863828,-1109.77,0.0003945,14]
[354569329,1740577863839,-500.0,0.0003945,14]
[354569330,1740577863850,-855.27,0.0003945,14]
[354569331,1740577863861,-500.0,0.0003945,14]
[354569332,1740577863872,-1712.91,0.0003945,14]
[354569333,1740577863885,-1012.46,0.0003945,14]
[354569334,1740577863895,-500.0,0.0003945,14]
[354569335,1740577863906,-1563.92,0.0003945,14]
[354569336,1740577863916,-943.3,0.0003945,14]
[354569337,1740577863926,-577.65,0.0003945,14]
[354569338,1740577863937,-939.4,0.0003945,14]
[354569339,1740577863948,-1267.61,0.0003945,14]
[354569340,1740577863957,-578.32,0.0003945,14]
[354569341,1740577863967,-676.6,0.0003945,14]
[354569342,1740577863977,-904.12,0.0003945,14]
[354569343,1740577863987,-909.27,0.0003945,14]
[354569344,1740577863997,-679.06,0.0003945,14]
[354569345,1740577864007,-500.0,0.0003945,14]
[354569346,1740577864018,-1198.5,0.0003945,14]
[354569347,1740577864027,-843.37,0.0003945,14]
[354569348,1740577864037,-608.61,0.0003945,14]
[354569349,1740577864048,-738.4,0.0003945,14]
[354569350,1740577864058,-1475.91,0.0003945,14]
[354569351,1740577864068,-1120.02,0.0003945,14]
[354569352,1740577864079,-2196.09,0.0003945,14]
[354569353,1740577864089,-1079.47,0.0003945,14]
[354569354,1740577864100,-589.93,0.0003945,14]
[354569355,1740577864111,-783.92,0.0003945,14]
[354569356,1740577864124,-1902.54,0.0003945,14]
[354569357,1740577864134,-699.89,0.0003945,14]
[354569358,1740577864145,-922.8,0.0003945,14]
[354569359,1740577864156,-500.0,0.0003945,14]
[354569360,1740577864166,-500.0,0.0003945,14]
[354569361,1740577864178,-500.0,0.0003945,14]
[354569362,1740577864429,-894.7,0.0003945,14]
[354569363,1740577864485,-500.0,0.0003945,14]
[354569364,1740577864495,-500.0,0.0003945,14]
[354569365,1740577864504,-517.79,0.0003945,14]
[354569366,1740577864514,-992.29,0.0003945,14]
[354569367,1740577864524,-1024.53,0.0003945,14]
[354569368,1740577864533,-1992.53,0.0003945,14]
[354569369,1740577864542,-837.94,0.0003945,14]
[354569370,1740577864552,-996.74,0.0003945,14]
[354569371,1740577864560,-1716.42,0.0003945,14]
[354569372,1740577864571,-1083.7,0.0003945,14]
[354569373,1740577864580,-500.0,0.0003945,14]
[354569374,1740577864590,-1427.01,0.0003945,14]
[354569375,1740577864601,-873.23,0.0003945,14]
[354569376,1740577864610,-1724.87,0.0003945,14]
[354569377,1740577864621,-1541.1,0.0003945,14]
[354569378,1740577864631,-853.86,0.0003945,14]
[354569379,1740577864642,-1657.8,0.0003945,14]
[354569380,1740577864652,-1177.76,0.0003945,14]
[354569381,1740577864662,-738.79,0.0003945,14]
[354569382,1740577864672,-837.42,0.0003945,14]
[354569383,1740577864682,-1146.25,0.0003945,14]
[354569384,1740577864692,-1277.44,0.0003945,14]
[354569385,1740577864702,-703.97,0.0003945,14]
[354569386,1740577864712,-2708.98,0.0003945,14]
[354569387,1740577864722,-3028.36,0.0003945,14]
[354569388,1740577864732,-1805.32,0.0003945,14]
[354569389,1740577864742,-500.0,0.0003945,14]
[354569390,1740577864752,-1102.48,0.0003945,7]
[354569391,1740577864761,-1567.51,0.0003945,14]
[354569392,1740577864771,-1014.94,0.0003945,14]
[354569393,1740577864787,-1959.78,0.0003945,14]
[354569394,1740577864796,-500.0,0.0003945,14]
[354569395,1740577864806,-790.21,0.0003945,14]
[354569396,1740577864815,-500.0,0.0003945,14]
[354569397,1740577864826,-2008.07,0.0003945,14]
[354569398,1740577864836,-2154.4,0.0003945,14]
[354569399,1740577864846,-2656.79,0.0003945,14]
[354569400,1740577864855,-2642.81,0.0003945,14]
[354569401,1740577864865,-2078.28,0.0003945,2]
[354569402,1740577864878,-740.95,0.0003945,14]
[354569403,1740577864888,-2542.35,0.0003945,14]
[354569404,1740577864898,-3356.39,0.0003945,14]
[354569405,1740577864908,-1029.43,0.0003945,14]
[354569406,1740577864918,-2197.92,0.0003945,14]
[354569407,1740577864927,-500.0,0.0003945,14]
[354569408,1740577864937,-2782.04,0.0003945,14]
[354569409,1740577864947,-3480.26,0.0003945,14]
[354569410,1740577864956,-6213.2803966,0.0003945,14]
[354569411,1740577865351,-2850.7496034,0.0003945,14]
[354569412,1740577865362,-1790.25,0.0003945,14]
[354569413,1740577865373,-11996.38,0.0003945,14]
[354569414,1740577865383,-867.47,0.0003945,7]
[354569415,1740577865393,-7204.63,0.0003945,14]
[354569416,1740577865403,-1439.36,0.0003945,14]